[Event "Late-Titled-Tuesday-Blitz-April-16-2024"]
[Site "Chess.com"]
[Date "2024.04.16"]
[Round "7"]
[White "HajiyevKanan"]
[Black "Road2GM3000"]
[Result "1-0"]
[WhiteElo "2605"]
[BlackElo "2454"]
[TimeControl "180+1"]
[EndTime "15:14:40 PDT"]
[Termination "HajiyevKanan won by resignation"]

1. d4 {[%clk 0:03:00.9]} 1... d5 {[%clk 0:02:58.8]} 2. Nf3 {[%clk 0:03:01.8]}
2... Nf6 {[%clk 0:02:58.3]} 3. c4 {[%clk 0:03:02.7]} 3... c6 {[%clk 0:02:59]} 4.
cxd5 {[%clk 0:03:03.6]} 4... cxd5 {[%clk 0:02:59.5]} 5. Nc3 {[%clk 0:03:04.5]}
5... Nc6 {[%clk 0:03:00.1]} 6. Bg5 {[%clk 0:03:05.2]} 6... a6 {[%clk 0:03:00.9]}
7. Bxf6 {[%clk 0:03:03.6]} 7... gxf6 {[%clk 0:03:01.8]} 8. Qb3 {[%clk 0:03:04]}
8... e6 {[%clk 0:03:00.3]} 9. e3 {[%clk 0:03:04.6]} 9... Rb8 {[%clk 0:02:56.1]}
10. Bd3 {[%clk 0:03:02.9]} 10... Bd6 {[%clk 0:02:56.6]} 11. O-O {[%clk
0:03:01.4]} 11... Bd7 {[%clk 0:02:57.2]} 12. e4 {[%clk 0:03:01.9]} 12... dxe4
{[%clk 0:02:57.3]} 13. Nxe4 {[%clk 0:03:02.2]} 13... Be7 {[%clk 0:02:57.8]} 14.
d5 {[%clk 0:02:59]} 14... Ne5 {[%clk 0:02:56.2]} 15. Nxe5 {[%clk 0:02:55.7]}
15... fxe5 {[%clk 0:02:57.1]} 16. d6 {[%clk 0:02:51.5]} 16... Bg5 {[%clk
0:02:42.2]} 17. Nxg5 {[%clk 0:02:23.8]} 17... Qxg5 {[%clk 0:02:34.3]} 18. Rac1
{[%clk 0:02:24.1]} 18... O-O {[%clk 0:02:24.7]} 19. Be4 {[%clk 0:02:16.3]} 19...
f5 {[%clk 0:02:19.7]} 20. Rc7 {[%clk 0:02:16.1]} 20... fxe4 {[%clk 0:02:04.5]}
21. Rxd7 {[%clk 0:02:15.1]} 21... Rf6 {[%clk 0:02:05]} 22. Rxb7 {[%clk
0:02:09.3]} 22... Rbf8 {[%clk 0:02:04.4]} 23. Qg3 {[%clk 0:01:48.1]} 23... Qxg3
{[%clk 0:01:57.7]} 24. hxg3 {[%clk 0:01:49]} 24... e3 {[%clk 0:01:56.6]} 25. f3
{[%clk 0:01:49.6]} 25... e4 {[%clk 0:01:54.1]} 26. f4 {[%clk 0:01:29.7]} 26...
e5 {[%clk 0:01:51.5]} 27. d7 {[%clk 0:01:28.5]} 27... exf4 {[%clk 0:01:43.4]}
28. gxf4 {[%clk 0:01:27.3]} 28... Rd6 {[%clk 0:01:36]} 29. g3 {[%clk 0:01:17.7]}
29... Rd8 {[%clk 0:00:51.3]} 30. Re1 {[%clk 0:01:17]} 30... R6xd7 {[%clk
0:00:50.5]} 31. Rxd7 {[%clk 0:01:17]} 31... Rxd7 {[%clk 0:00:50.8]} 32. Rxe3
{[%clk 0:01:17.8]} 32... Rd2 {[%clk 0:00:47.8]} 33. Rxe4 {[%clk 0:01:14.7]}
33... Rxb2 {[%clk 0:00:47.7]} 34. Ra4 {[%clk 0:01:15.4]} 34... Rb6 {[%clk
0:00:47.5]} 35. Kf2 {[%clk 0:01:14.9]} 35... Kf7 {[%clk 0:00:47.3]} 36. Kf3
{[%clk 0:01:14]} 36... h5 {[%clk 0:00:47.1]} 37. Ra5 {[%clk 0:01:12.8]} 37...
Kg6 {[%clk 0:00:47.1]} 38. Rg5+ {[%clk 0:01:10.8]} 38... Kh6 {[%clk 0:00:46.8]}
39. a4 {[%clk 0:01:11.5]} 39... Rb3+ {[%clk 0:00:44.9]} 40. Kg2 {[%clk
0:01:11.6]} 40... h4 {[%clk 0:00:35.7]} 41. gxh4 {[%clk 0:00:59.6]} 41... Rb4
{[%clk 0:00:35.4]} 42. Ra5 {[%clk 0:00:52.8]} 42... Rxf4 {[%clk 0:00:33.5]} 43.
Rxa6+ {[%clk 0:00:53.2]} 43... Kh5 {[%clk 0:00:27]} 44. Kg3 {[%clk 0:00:47.7]}
44... Rb4 {[%clk 0:00:25.5]} 45. a5 {[%clk 0:00:40.5]} 45... Rb3+ {[%clk
0:00:20]} 46. Kf4 {[%clk 0:00:40.7]} 46... Rb4+ {[%clk 0:00:15.6]} 47. Ke5
{[%clk 0:00:40.1]} 47... Kxh4 {[%clk 0:00:16.5]} 48. Kd5 {[%clk 0:00:37.5]}
48... Kg5 {[%clk 0:00:16.8]} 49. Kc5 {[%clk 0:00:37.6]} 49... Rb1 {[%clk
0:00:17]} 50. Rb6 {[%clk 0:00:34.1]} 50... Rc1+ {[%clk 0:00:16.3]} 51. Kb5
{[%clk 0:00:33.7]} 51... Kf5 {[%clk 0:00:16.3]} 52. a6 {[%clk 0:00:33.2]} 52...
Ra1 {[%clk 0:00:15.4]} 53. Kc6 {[%clk 0:00:31.9]} 53... Ke6 {[%clk 0:00:16.1]}
54. Kb7+ {[%clk 0:00:31.8]} 54... Kd7 {[%clk 0:00:16]} 55. a7 {[%clk 0:00:32]}
1-0

[Event "Late-Titled-Tuesday-Blitz-April-16-2024"]
[Site "Chess.com"]
[Date "2024.04.16"]
[Round "7"]
[White "Andrii_Prydun"]
[Black "Eloist"]
[Result "1-0"]
[WhiteElo "2379"]
[BlackElo "2458"]
[TimeControl "180+1"]
[EndTime "15:14:45 PDT"]
[Termination "Andrii_Prydun won on time"]

1. e4 {[%clk 0:03:00.9]} 1... e6 {[%clk 0:02:59.7]} 2. d4 {[%clk 0:02:59.5]}
2... d5 {[%clk 0:03:00]} 3. e5 {[%clk 0:02:55]} 3... c5 {[%clk 0:02:59.6]} 4. c3
{[%clk 0:02:55.2]} 4... Qb6 {[%clk 0:02:59.6]} 5. Ne2 {[%clk 0:02:50.8]} 5...
Bd7 {[%clk 0:02:50.6]} 6. Nd2 {[%clk 0:02:45.2]} 6... Bb5 {[%clk 0:02:46]} 7.
Nf3 {[%clk 0:02:43.7]} 7... Nc6 {[%clk 0:02:40.3]} 8. Rb1 {[%clk 0:02:22.3]}
8... Rc8 {[%clk 0:02:33.1]} 9. a4 {[%clk 0:01:44.6]} 9... Bxe2 {[%clk
0:02:30.8]} 10. Bxe2 {[%clk 0:01:34.1]} 10... cxd4 {[%clk 0:02:30.8]} 11. cxd4
{[%clk 0:01:34.2]} 11... Bb4+ {[%clk 0:02:29.7]} 12. Kf1 {[%clk 0:01:34.3]}
12... Nge7 {[%clk 0:02:26.2]} 13. Bd3 {[%clk 0:01:26.4]} 13... Nf5 {[%clk
0:02:07.9]} 14. Bxf5 {[%clk 0:01:25.6]} 14... exf5 {[%clk 0:02:07.5]} 15. Be3
{[%clk 0:01:17.9]} 15... Nd8 {[%clk 0:01:59.9]} 16. Qb3 {[%clk 0:01:15.1]} 16...
Rc4 {[%clk 0:01:51.5]} 17. g3 {[%clk 0:00:42]} 17... Ne6 {[%clk 0:01:50.1]} 18.
Kg2 {[%clk 0:00:37.9]} 18... O-O {[%clk 0:01:49.4]} 19. Rhc1 {[%clk 0:00:29.7]}
19... Rfc8 {[%clk 0:01:47.2]} 20. Rxc4 {[%clk 0:00:28]} 20... Rxc4 {[%clk
0:01:37.3]} 21. Qd1 {[%clk 0:00:18]} 21... Be7 {[%clk 0:01:21.1]} 22. b3 {[%clk
0:00:14]} 22... Rc3 {[%clk 0:01:16.2]} 23. Bd2 {[%clk 0:00:02.1]} 23... Rd3
{[%clk 0:01:09.8]} 24. Qe2 {[%clk 0:00:02.1]} 24... Rxb3 {[%clk 0:01:07.7]} 25.
a5 {[%clk 0:00:02.6]} 25... Rxb1 {[%clk 0:00:38.7]} 26. axb6 {[%clk 0:00:02.3]}
26... Rxb6 {[%clk 0:00:39.3]} 27. Qd3 {[%clk 0:00:02.3]} 27... g6 {[%clk
0:00:35.2]} 28. h4 {[%clk 0:00:02.7]} 28... Kg7 {[%clk 0:00:31.7]} 29. h5 {[%clk
0:00:03]} 29... Rc6 {[%clk 0:00:25.5]} 30. h6+ {[%clk 0:00:03.6]} 30... Kg8
{[%clk 0:00:24.7]} 31. Qb3 {[%clk 0:00:04.5]} 31... Rc4 {[%clk 0:00:09.4]} 32.
Qxb7 {[%clk 0:00:03.8]} 32... Nc7 {[%clk 0:00:08.6]} 33. Qxa7 {[%clk 0:00:03.7]}
33... Kf8 {[%clk 0:00:06.8]} 34. Qb8+ {[%clk 0:00:03.7]} 34... Ne8 {[%clk
0:00:05]} 35. Be3 {[%clk 0:00:03.7]} 1-0

[Event "Late-Titled-Tuesday-Blitz-April-16-2024"]
[Site "Chess.com"]
[Date "2024.04.16"]
[Round "7"]
[White "ChadBiryani"]
[Black "BabageldiAnnaberdiyev"]
[Result "0-1"]
[WhiteElo "2462"]
[BlackElo "2606"]
[TimeControl "180+1"]
[EndTime "15:14:47 PDT"]
[Termination "BabageldiAnnaberdiyev won on time"]

1. c4 {[%clk 0:03:00.9]} 1... e6 {[%clk 0:03:00.9]} 2. g3 {[%clk 0:03:00.9]}
2... d5 {[%clk 0:02:59.5]} 3. Bg2 {[%clk 0:03:00.6]} 3... f5 {[%clk 0:02:59.3]}
4. d3 {[%clk 0:02:59.4]} 4... Nf6 {[%clk 0:02:59.8]} 5. Nf3 {[%clk 0:02:58]}
5... Bc5 {[%clk 0:02:59.2]} 6. O-O {[%clk 0:02:57.9]} 6... O-O {[%clk
0:02:59.8]} 7. a3 {[%clk 0:02:55.1]} 7... a5 {[%clk 0:02:59.2]} 8. Nc3 {[%clk
0:02:51.1]} 8... c6 {[%clk 0:02:59.1]} 9. Bg5 {[%clk 0:02:50]} 9... h6 {[%clk
0:02:58.4]} 10. Bf4 {[%clk 0:02:49.9]} 10... g5 {[%clk 0:02:39]} 11. Be5 {[%clk
0:02:47.2]} 11... Nbd7 {[%clk 0:02:38.6]} 12. d4 {[%clk 0:02:43]} 12... Be7
{[%clk 0:02:34.7]} 13. Qc1 {[%clk 0:02:31.1]} 13... Ne4 {[%clk 0:02:31.9]} 14.
Rd1 {[%clk 0:02:28.2]} 14... Bf6 {[%clk 0:02:27.3]} 15. Bxf6 {[%clk 0:02:27.4]}
15... Qxf6 {[%clk 0:02:28.1]} 16. Nd2 {[%clk 0:02:21.8]} 16... h5 {[%clk
0:02:05]} 17. Ndxe4 {[%clk 0:02:10.3]} 17... fxe4 {[%clk 0:02:04.5]} 18. Rf1
{[%clk 0:02:10.7]} 18... g4 {[%clk 0:01:53.9]} 19. Qe3 {[%clk 0:02:03.9]} 19...
Nb6 {[%clk 0:01:45.9]} 20. b3 {[%clk 0:02:02.9]} 20... a4 {[%clk 0:01:44.9]} 21.
c5 {[%clk 0:02:02.8]} 21... Nd7 {[%clk 0:01:42.4]} 22. b4 {[%clk 0:01:57.5]}
22... e5 {[%clk 0:01:40.2]} 23. Rad1 {[%clk 0:01:55.9]} 23... exd4 {[%clk
0:01:39.9]} 24. Rxd4 {[%clk 0:01:55.5]} 24... Ne5 {[%clk 0:01:38.9]} 25. Nxe4
{[%clk 0:01:42.9]} 25... dxe4 {[%clk 0:01:37]} 26. Rxe4 {[%clk 0:01:41.8]} 26...
Ng6 {[%clk 0:01:36.9]} 27. Qh6 {[%clk 0:01:37.3]} 27... Bf5 {[%clk 0:01:34.7]}
28. Re3 {[%clk 0:01:32.9]} 28... h4 {[%clk 0:01:30.5]} 29. b5 {[%clk 0:01:04.3]}
29... h3 {[%clk 0:01:25.5]} 30. Bh1 {[%clk 0:01:03.2]} 30... Rac8 {[%clk
0:01:20.6]} 31. bxc6 {[%clk 0:01:02]} 31... bxc6 {[%clk 0:01:21.5]} 32. f3
{[%clk 0:00:48]} 32... Qg7 {[%clk 0:01:18.3]} 33. Qg5 {[%clk 0:00:44.2]} 33...
gxf3 {[%clk 0:01:08.7]} 34. Bxf3 {[%clk 0:00:41.1]} 34... Bc2 {[%clk 0:01:07.3]}
35. Kh1 {[%clk 0:00:32]} 35... Bb3 {[%clk 0:01:01.5]} 36. Rd3 {[%clk 0:00:27.1]}
36... Ne5 {[%clk 0:00:54.8]} 37. Qxg7+ {[%clk 0:00:25.1]} 37... Kxg7 {[%clk
0:00:55.7]} 38. Re3 {[%clk 0:00:20.1]} 38... Nxf3 {[%clk 0:00:55.8]} 39. exf3
{[%clk 0:00:19.4]} 39... Bd5 {[%clk 0:00:56.4]} 40. Kg1 {[%clk 0:00:19.5]} 40...
Rb8 {[%clk 0:00:56.6]} 41. f4 {[%clk 0:00:12.1]} 41... Rb2 {[%clk 0:00:55.6]}
42. Rf2 {[%clk 0:00:12.6]} 42... Rfb8 {[%clk 0:00:55]} 43. Ree2 {[%clk
0:00:11.3]} 43... Rb1+ {[%clk 0:00:54.6]} 44. Rf1 {[%clk 0:00:11.5]} 44... Bg2
{[%clk 0:00:53.9]} 45. Rxb1 {[%clk 0:00:11.1]} 45... Rxb1+ {[%clk 0:00:54.6]}
46. Kf2 {[%clk 0:00:11.9]} 46... Rb3 {[%clk 0:00:54.5]} 47. Ra2 {[%clk
0:00:08.9]} 47... Kf6 {[%clk 0:00:54.6]} 48. g4 {[%clk 0:00:09.4]} 48... Ke6
{[%clk 0:00:53.2]} 49. Re2+ {[%clk 0:00:07.5]} 49... Kd5 {[%clk 0:00:51.5]} 50.
g5 {[%clk 0:00:07.6]} 50... Rf3+ {[%clk 0:00:50.6]} 51. Ke1 {[%clk 0:00:06.5]}
51... Rxf4 {[%clk 0:00:51.3]} 52. g6 {[%clk 0:00:06.7]} 52... Rg4 {[%clk
0:00:51.4]} 53. Re7 {[%clk 0:00:02.7]} 53... Rxg6 {[%clk 0:00:49.9]} 54. Ra7
{[%clk 0:00:03.3]} 54... Re6+ {[%clk 0:00:47.7]} 55. Kf2 {[%clk 0:00:03.2]}
55... Re4 {[%clk 0:00:48.6]} 0-1

[Event "Late-Titled-Tuesday-Blitz-April-16-2024"]
[Site "Chess.com"]
[Date "2024.04.16"]
[Round "7"]
[White "Ykow"]
[Black "oskariot"]
[Result "0-1"]
[WhiteElo "2553"]
[BlackElo "2744"]
[TimeControl "180+1"]
[EndTime "15:14:49 PDT"]
[Termination "oskariot won by resignation"]

1. e4 {[%clk 0:02:56.8]} 1... c5 {[%clk 0:02:31.1]} 2. Nf3 {[%clk 0:02:56.2]}
2... e6 {[%clk 0:02:30.8]} 3. d4 {[%clk 0:02:54.4]} 3... cxd4 {[%clk 0:02:31.7]}
4. Nxd4 {[%clk 0:02:54.9]} 4... Nf6 {[%clk 0:02:32.2]} 5. Nc3 {[%clk 0:02:54.7]}
5... d6 {[%clk 0:02:32.9]} 6. g4 {[%clk 0:02:52.9]} 6... e5 {[%clk 0:02:32.2]}
7. Bb5+ {[%clk 0:02:47.3]} 7... Bd7 {[%clk 0:02:29.1]} 8. Bxd7+ {[%clk
0:02:47.1]} 8... Qxd7 {[%clk 0:02:30]} 9. Nf5 {[%clk 0:02:47.3]} 9... h5 {[%clk
0:02:28.4]} 10. Bg5 {[%clk 0:02:38.2]} 10... Nh7 {[%clk 0:02:22.8]} 11. Bh4
{[%clk 0:02:24.7]} 11... g5 {[%clk 0:02:07.7]} 12. Nd5 {[%clk 0:02:24.6]} 12...
gxh4 {[%clk 0:02:06.7]} 13. Qd2 {[%clk 0:02:22.6]} 13... hxg4 {[%clk 0:01:59.8]}
14. O-O-O {[%clk 0:02:22]} 14... Nc6 {[%clk 0:02:00.2]} 15. Kb1 {[%clk 0:02:12]}
15... O-O-O {[%clk 0:01:55.3]} 16. c4 {[%clk 0:02:11.6]} 16... Ne7 {[%clk
0:01:31.9]} 17. Qa5 {[%clk 0:01:48.1]} 17... Nxd5 {[%clk 0:01:14.8]} 18. Rxd5
{[%clk 0:00:58.4]} 18... Nf6 {[%clk 0:00:59.7]} 19. Qxa7 {[%clk 0:00:57.1]}
19... Nxd5 {[%clk 0:01:00]} 20. cxd5 {[%clk 0:00:48.8]} 20... Qb5 {[%clk
0:00:59.7]} 21. a4 {[%clk 0:00:42.5]} 21... Qd3+ {[%clk 0:00:53.7]} 22. Ka1
{[%clk 0:00:41.6]} 22... Qa6 {[%clk 0:00:45.7]} 23. Qe3 {[%clk 0:00:36.6]} 23...
Qxa4+ {[%clk 0:00:39]} 24. Kb1 {[%clk 0:00:37]} 24... Kb8 {[%clk 0:00:39.6]} 25.
Rc1 {[%clk 0:00:33.8]} 25... Rc8 {[%clk 0:00:25.1]} 26. Rxc8+ {[%clk 0:00:33.3]}
26... Kxc8 {[%clk 0:00:25.8]} 27. b3 {[%clk 0:00:33.2]} 27... Qb5 {[%clk
0:00:23.1]} 28. Kb2 {[%clk 0:00:30.7]} 28... f6 {[%clk 0:00:16.7]} 29. Qa7
{[%clk 0:00:27.8]} 29... Qa6 {[%clk 0:00:14.3]} 30. Qe3 {[%clk 0:00:27]} 30...
Rh7 {[%clk 0:00:14.6]} 31. h3 {[%clk 0:00:24.4]} 31... gxh3 {[%clk 0:00:12.3]}
32. Qxh3 {[%clk 0:00:25.3]} 32... Kb8 {[%clk 0:00:12.6]} 33. Qg4 {[%clk
0:00:22.6]} 33... Rc7 {[%clk 0:00:13]} 34. Nxh4 {[%clk 0:00:20.5]} 34... Qa5
{[%clk 0:00:10.8]} 35. Qe2 {[%clk 0:00:16.7]} 35... Qc3+ {[%clk 0:00:10.8]} 36.
Ka2 {[%clk 0:00:15.7]} 36... Bh6 {[%clk 0:00:11.3]} 37. Nf5 {[%clk 0:00:14.9]}
37... Bc1 {[%clk 0:00:10.8]} 38. Nxd6 {[%clk 0:00:12.1]} 38... Qa5+ {[%clk
0:00:08.9]} 39. Kb1 {[%clk 0:00:11.9]} 39... Bf4 {[%clk 0:00:08.3]} 40. Nc4
{[%clk 0:00:11.9]} 40... Qb4 {[%clk 0:00:08.8]} 41. Qc2 {[%clk 0:00:12.2]} 41...
b5 {[%clk 0:00:08.9]} 42. d6 {[%clk 0:00:12.5]} 42... Rxc4 {[%clk 0:00:09]} 43.
d7 {[%clk 0:00:11]} 43... Qe1+ {[%clk 0:00:07]} 0-1

[Event "Late-Titled-Tuesday-Blitz-April-16-2024"]
[Site "Chess.com"]
[Date "2024.04.16"]
[Round "7"]
[White "Nemsko"]
[Black "nassimzrikem"]
[Result "1-0"]
[WhiteElo "2437"]
[BlackElo "2269"]
[TimeControl "180+1"]
[EndTime "15:14:57 PDT"]
[Termination "Nemsko won by checkmate"]

1. e4 {[%clk 0:03:00.9]} 1... e5 {[%clk 0:02:57.8]} 2. Nf3 {[%clk 0:03:00.4]}
2... Nc6 {[%clk 0:02:57.5]} 3. Bb5 {[%clk 0:03:01.1]} 3... a6 {[%clk 0:02:57.4]}
4. Ba4 {[%clk 0:03:01.7]} 4... Nf6 {[%clk 0:02:56.4]} 5. O-O {[%clk 0:03:02.3]}
5... b5 {[%clk 0:02:51.3]} 6. Bb3 {[%clk 0:03:02.4]} 6... Bc5 {[%clk 0:02:51.9]}
7. d3 {[%clk 0:03:01.7]} 7... d6 {[%clk 0:02:50.4]} 8. c3 {[%clk 0:03:02.1]}
8... h6 {[%clk 0:02:49.7]} 9. h3 {[%clk 0:03:02.2]} 9... O-O {[%clk 0:02:47.5]}
10. Be3 {[%clk 0:03:02.7]} 10... Ba7 {[%clk 0:02:44.9]} 11. Nbd2 {[%clk
0:03:02.9]} 11... Na5 {[%clk 0:02:43.4]} 12. Bc2 {[%clk 0:03:03]} 12... Bxe3
{[%clk 0:02:43.7]} 13. fxe3 {[%clk 0:03:03.2]} 13... c5 {[%clk 0:02:44.3]} 14.
Qe1 {[%clk 0:03:03.2]} 14... Nh7 {[%clk 0:02:40.1]} 15. Qg3 {[%clk 0:03:02.6]}
15... Nc6 {[%clk 0:02:35.5]} 16. Nh4 {[%clk 0:02:59.2]} 16... Qg5 {[%clk
0:02:35.6]} 17. Qf2 {[%clk 0:02:58.5]} 17... Ra7 {[%clk 0:02:17.9]} 18. Nf5
{[%clk 0:02:51.1]} 18... Bxf5 {[%clk 0:02:14.4]} 19. exf5 {[%clk 0:02:52]} 19...
d5 {[%clk 0:02:12.8]} 20. e4 {[%clk 0:02:49.2]} 20... d4 {[%clk 0:02:10.5]} 21.
Nf3 {[%clk 0:02:41.8]} 21... Qf6 {[%clk 0:02:10]} 22. a4 {[%clk 0:02:35.1]}
22... b4 {[%clk 0:02:09.5]} 23. c4 {[%clk 0:02:35.2]} 23... b3 {[%clk
0:01:36.3]} 24. Bd1 {[%clk 0:02:25]} 24... Nb4 {[%clk 0:01:29.9]} 25. Qd2 {[%clk
0:02:12.8]} 25... Rb8 {[%clk 0:01:25.1]} 26. Ra3 {[%clk 0:01:55.4]} 26... Rab7
{[%clk 0:00:50.5]} 27. Rxb3 {[%clk 0:01:41.9]} 27... Qc6 {[%clk 0:00:39.7]} 28.
Ra3 {[%clk 0:01:37.6]} 28... f6 {[%clk 0:00:16.9]} 29. b3 {[%clk 0:01:36.9]}
29... Nf8 {[%clk 0:00:15.9]} 30. g4 {[%clk 0:01:34.9]} 30... Qe8 {[%clk
0:00:14]} 31. Kh2 {[%clk 0:01:33.6]} 31... Qd8 {[%clk 0:00:13.5]} 32. Kg3 {[%clk
0:01:33.8]} 32... Nc6 {[%clk 0:00:13.9]} 33. Rh1 {[%clk 0:01:28.3]} 33... Na5
{[%clk 0:00:13.8]} 34. h4 {[%clk 0:01:21]} 34... Nxb3 {[%clk 0:00:13.5]} 35.
Bxb3 {[%clk 0:01:21.9]} 35... Rxb3 {[%clk 0:00:13.8]} 36. Rxb3 {[%clk
0:01:22.8]} 36... Rxb3 {[%clk 0:00:14.1]} 37. g5 {[%clk 0:01:23.3]} 37... Kh7
{[%clk 0:00:09.5]} 38. Nh2 {[%clk 0:01:12.2]} 38... fxg5 {[%clk 0:00:09.6]} 39.
Ng4 {[%clk 0:01:08.7]} 39... gxh4+ {[%clk 0:00:09.7]} 40. Rxh4 {[%clk
0:01:09.6]} 40... Kg8 {[%clk 0:00:09.6]} 41. Nxh6+ {[%clk 0:00:22.5]} 41... gxh6
{[%clk 0:00:09.7]} 42. Qxh6 {[%clk 0:00:23.4]} 42... Kf7 {[%clk 0:00:09.6]} 43.
Rg4 {[%clk 0:00:18]} 43... Rxd3+ {[%clk 0:00:09]} 44. Kf2 {[%clk 0:00:16.9]}
44... Qa5 {[%clk 0:00:05.6]} 45. Rg7+ {[%clk 0:00:15.9]} 45... Ke8 {[%clk
0:00:05.8]} 46. Qc6+ {[%clk 0:00:14.8]} 46... Kd8 {[%clk 0:00:04.2]} 47. Qa8#
{[%clk 0:00:14.9]} 1-0

[Event "Late-Titled-Tuesday-Blitz-April-16-2024"]
[Site "Chess.com"]
[Date "2024.04.16"]
[Round "7"]
[White "Rutricks"]
[Black "Orest_Vovk"]
[Result "1/2-1/2"]
[WhiteElo "2677"]
[BlackElo "2549"]
[TimeControl "180+1"]
[EndTime "15:14:58 PDT"]
[Termination "Game drawn by repetition"]

1. Nc3 {[%clk 0:02:59.7]} 1... g5 {[%clk 0:02:54.1]} 2. d4 {[%clk 0:02:59.9]}
2... h6 {[%clk 0:02:53.5]} 3. h4 {[%clk 0:02:59.4]} 3... g4 {[%clk 0:02:52.2]}
4. e4 {[%clk 0:02:59]} 4... Bg7 {[%clk 0:02:51.5]} 5. Qxg4 {[%clk 0:02:51.9]}
5... Bxd4 {[%clk 0:02:50.7]} 6. Nf3 {[%clk 0:02:51.9]} 6... Nf6 {[%clk
0:02:50.2]} 7. Qg7 {[%clk 0:02:44.8]} 7... Rg8 {[%clk 0:02:48.6]} 8. Qxg8+
{[%clk 0:02:36.7]} 8... Nxg8 {[%clk 0:02:48]} 9. Nxd4 {[%clk 0:02:37.4]} 9...
Nc6 {[%clk 0:02:43.6]} 10. Nb3 {[%clk 0:02:33.8]} 10... Nb4 {[%clk 0:02:36.5]}
11. Bd3 {[%clk 0:02:17.2]} 11... Nxd3+ {[%clk 0:02:35.7]} 12. cxd3 {[%clk
0:02:18.1]} 12... d6 {[%clk 0:02:35.9]} 13. Be3 {[%clk 0:02:17.7]} 13... c5
{[%clk 0:02:31.7]} 14. f3 {[%clk 0:02:12.7]} 14... Be6 {[%clk 0:02:31]} 15. d4
{[%clk 0:02:09]} 15... Bxb3 {[%clk 0:02:29.2]} 16. axb3 {[%clk 0:02:09]} 16...
Qb6 {[%clk 0:02:18.9]} 17. dxc5 {[%clk 0:01:45.2]} 17... Qxb3 {[%clk 0:02:17.3]}
18. O-O {[%clk 0:01:36.7]} 18... dxc5 {[%clk 0:02:12.1]} 19. Nd5 {[%clk
0:01:21.2]} 19... Kf8 {[%clk 0:02:09.1]} 20. Bxc5 {[%clk 0:01:19.1]} 20... b6
{[%clk 0:01:34.5]} 21. Nxb6 {[%clk 0:01:15.1]} 21... Rd8 {[%clk 0:01:21.3]} 22.
Nd5 {[%clk 0:01:05.6]} 22... Rd7 {[%clk 0:00:48.8]} 23. Bxa7 {[%clk 0:00:50.1]}
23... Rxa7 {[%clk 0:00:26.8]} 24. Rxa7 {[%clk 0:00:48.5]} 24... Qxb2 {[%clk
0:00:27.3]} 25. Rfa1 {[%clk 0:00:26.7]} 25... e6 {[%clk 0:00:21.9]} 26. Nf4
{[%clk 0:00:19.7]} 26... Nf6 {[%clk 0:00:16.6]} 27. Ra8+ {[%clk 0:00:13.3]}
27... Kg7 {[%clk 0:00:14.3]} 28. R8a7 {[%clk 0:00:13.9]} 28... Qb3 {[%clk
0:00:12.3]} 29. Kh2 {[%clk 0:00:06.7]} 29... e5 {[%clk 0:00:08.9]} 30. Ne2
{[%clk 0:00:05.4]} 30... Nh5 {[%clk 0:00:06.5]} 31. Rd7 {[%clk 0:00:03.1]} 31...
Qc2 {[%clk 0:00:02.3]} 32. Ng3 {[%clk 0:00:02.5]} 32... Nxg3 {[%clk 0:00:01.8]}
33. Kxg3 {[%clk 0:00:03.4]} 33... Qc6 {[%clk 0:00:01.3]} 34. Raa7 {[%clk
0:00:03.7]} 34... Qg6+ {[%clk 0:00:01.7]} 35. Kf2 {[%clk 0:00:04.4]} 35... Qh5
{[%clk 0:00:01.8]} 36. Rxf7+ {[%clk 0:00:04.8]} 36... Kg8 {[%clk 0:00:02.2]} 37.
Rfb7 {[%clk 0:00:04.6]} 37... Qxh4+ {[%clk 0:00:02.1]} 38. Kf1 {[%clk
0:00:04.2]} 38... Qd8 {[%clk 0:00:02]} 39. Kg1 {[%clk 0:00:03.4]} 39... Qd1+
{[%clk 0:00:01.7]} 40. Kh2 {[%clk 0:00:03.7]} 40... Qd8 {[%clk 0:00:02.2]} 41.
Ra6 {[%clk 0:00:03.5]} 41... Qh4+ {[%clk 0:00:01.7]} 42. Kg1 {[%clk 0:00:04]}
42... Qe1+ {[%clk 0:00:02.5]} 43. Kh2 {[%clk 0:00:04.6]} 43... Qh4+ {[%clk
0:00:03.2]} 44. Kg1 {[%clk 0:00:05.3]} 44... Qe1+ {[%clk 0:00:04]} 45. Kh2
{[%clk 0:00:05.9]} 45... Qh4+ {[%clk 0:00:04.7]} 1/2-1/2

[Event "Late-Titled-Tuesday-Blitz-April-16-2024"]
[Site "Chess.com"]
[Date "2024.04.16"]
[Round "7"]
[White "Glidzhian_Gor"]
[Black "Chempiblinka"]
[Result "0-1"]
[WhiteElo "2556"]
[BlackElo "2370"]
[TimeControl "180+1"]
[EndTime "15:15:03 PDT"]
[Termination "Chempiblinka won on time"]

1. e4 {[%clk 0:02:58.4]} 1... c5 {[%clk 0:02:59.1]} 2. d4 {[%clk 0:02:58.5]}
2... cxd4 {[%clk 0:02:59.2]} 3. c3 {[%clk 0:02:59.3]} 3... Nf6 {[%clk
0:02:59.1]} 4. e5 {[%clk 0:02:59.3]} 4... Nd5 {[%clk 0:02:59.6]} 5. Nf3 {[%clk
0:03:00.2]} 5... d6 {[%clk 0:02:51.5]} 6. cxd4 {[%clk 0:03:00.3]} 6... dxe5
{[%clk 0:02:51.8]} 7. dxe5 {[%clk 0:03:00.7]} 7... Nc6 {[%clk 0:02:50.3]} 8. Bd3
{[%clk 0:02:59.8]} 8... g6 {[%clk 0:02:44.3]} 9. O-O {[%clk 0:02:57.7]} 9... Bg7
{[%clk 0:02:43.4]} 10. Qe2 {[%clk 0:02:57.7]} 10... O-O {[%clk 0:02:37.7]} 11.
h3 {[%clk 0:02:54]} 11... Ndb4 {[%clk 0:02:26.8]} 12. Bc4 {[%clk 0:02:48.6]}
12... Bf5 {[%clk 0:02:08.5]} 13. Rd1 {[%clk 0:02:41.4]} 13... Qc7 {[%clk
0:02:07.1]} 14. Bf4 {[%clk 0:02:20.4]} 14... Rad8 {[%clk 0:01:54]} 15. Nc3
{[%clk 0:02:18.2]} 15... Nc2 {[%clk 0:01:39.8]} 16. Nd5 {[%clk 0:01:26.6]} 16...
Rxd5 {[%clk 0:01:28.2]} 17. Bxd5 {[%clk 0:00:44.8]} 17... Nxa1 {[%clk
0:01:27.5]} 18. Rxa1 {[%clk 0:00:27.2]} 18... h5 {[%clk 0:01:13.5]} 19. Rd1
{[%clk 0:00:26.3]} 19... e6 {[%clk 0:01:11.3]} 20. Be4 {[%clk 0:00:17.9]} 20...
Bxe4 {[%clk 0:01:08.9]} 21. Qxe4 {[%clk 0:00:08.3]} 21... Rd8 {[%clk 0:01:08.9]}
22. Rd6 {[%clk 0:00:08]} 22... Qb6 {[%clk 0:00:59.3]} 23. b3 {[%clk 0:00:05.5]}
23... Ne7 {[%clk 0:00:49.8]} 24. Bg5 {[%clk 0:00:04.9]} 24... Rxd6 {[%clk
0:00:47.3]} 25. exd6 {[%clk 0:00:04.9]} 25... Qxd6 {[%clk 0:00:47.6]} 26. Qxb7
{[%clk 0:00:05.7]} 26... Nf5 {[%clk 0:00:37.1]} 27. Qxa7 {[%clk 0:00:03.8]}
27... Qd1+ {[%clk 0:00:36.5]} 28. Kh2 {[%clk 0:00:04.2]} 28... Qc2 {[%clk
0:00:34.4]} 29. g3 {[%clk 0:00:03.5]} 29... Qe4 {[%clk 0:00:29.5]} 30. Qb8+
{[%clk 0:00:01.2]} 30... Kh7 {[%clk 0:00:28.9]} 31. Qf4 {[%clk 0:00:02.1]} 31...
Qc2 {[%clk 0:00:27.6]} 32. Qd2 {[%clk 0:00:02.8]} 32... Qe4 {[%clk 0:00:25.9]}
33. Qf4 {[%clk 0:00:03.2]} 33... Qc2 {[%clk 0:00:25.6]} 34. Qd2 {[%clk
0:00:02.4]} 34... Qc5 {[%clk 0:00:25.4]} 35. Be3 {[%clk 0:00:01.5]} 35... Nxe3
{[%clk 0:00:23.9]} 36. Qxe3 {[%clk 0:00:02.4]} 36... Qc2 {[%clk 0:00:22.3]} 37.
Ng5+ {[%clk 0:00:01.7]} 37... Kg8 {[%clk 0:00:21.3]} 38. Qf4 {[%clk 0:00:02.6]}
38... f6 {[%clk 0:00:15.2]} 39. Nxe6 {[%clk 0:00:02.9]} 39... Qxa2 {[%clk
0:00:12.2]} 40. Qb8+ {[%clk 0:00:01.6]} 40... Kh7 {[%clk 0:00:12.5]} 41. Qf4
{[%clk 0:00:01.1]} 41... Qa7 {[%clk 0:00:08.7]} 0-1